Cogmind - Beta 14 @@@ ROGUE MODE // 2024.08.09 @ 11:44:16 Player: Olafz Result: Destroyed by S-27 Virus with Autogun Performance ------------- Evolutions (5) 2500 Regions Visited (8) 1600 Robots Destroyed (2) 10 Value Destroyed (50) 50 Prototype IDs (9) 180 Alien Tech Used (0) 0 Bonus (1134) 1134 TOTAL SCORE: 5474 Bonus ------- Pacifist 834 Registered with UFD 300 Cogmind --------- Core Integrity 0/1000 Matter 270/300 Energy 98/100 System Corruption 0% Temperature Cool (0) Movement Core (50) Location -5/Factory Parts ------- > --- POWER (1) -------- (None) > --- PROPULSION (4) --- (None) > --- UTILITY (10) ----- Advanced Weight Redist. System Advanced Visual Processing Unit Experimental Signal Interpreter Improved Terrain Scan Processor Advanced Terrain Scan Processor Utility Shielding Hacking Suite Improved Corruption Screen Improved Corruption Screen > --- WEAPON (2) ------- Makeshift Spear > --- INVENTORY (5) ---- Improved Terrain Scanner Transmission Jammer ECM Suite Power Sword Peak State ------------ > --- POWER ------------ (None) > --- PROPULSION ------- Improved VTOL Module > --- UTILITY ---------- Structural Scanner Advanced Visual Processing Unit Improved Sensor Array Experimental Signal Interpreter Improved Terrain Scanner Improved Terrain Scan Processor Advanced Terrain Scan Processor Utility Shielding Hacking Suite Improved Corruption Screen > --- WEAPON ----------- Makeshift Spear > --- INVENTORY -------- Light Nuclear Core Structural Scanner Transmission Jammer ECM Suite Power Sword [Rating: 44] Favorites ----------- Power None Propulsion Improved VTOL Module Flight Unit Improved VTOL Module Utility Utility Shielding Device Structural Scanner Processor Advanced Visual Processing Unit Hackware Hacking Suite Protection Utility Shielding Weapon Makeshift Spear Piercing Weapon Makeshift Spear Build | -11 -10 -9 -8 -8 -8 -8 -6 -5 ------- Run | Yrd Mat Mat Mat Sto Rec Scr Fac Fac Slots Evolved 10 | . . 2 2 . . . 4 2 Power . | . . . . . . . . . Propulsion 2 | . . . 1 . . . 1 . Utility 8 | . . 2 1 . . . 3 2 Weapon . | . . . . . . . . . Parts Attached 22 | . 1 2 1 1 . 3 3 11 Power . | . . . . . . . . . Engine . | . . . . . . . . . Core . | . . . . . . . . . Reactor . | . . . . . . . . . Propulsion 2 | . . . 1 . . . . 1 Treads . | . . . . . . . . . Leg . | . . . . . . . . . Wheel . | . . . . . . . . . Hover . | . . . . . . . . . Flight 2 | . . . 1 . . . . 1 Utility 16 | . 1 2 . 1 . 2 3 7 Device 7 | . 1 1 . . . 1 2 2 Storage . | . . . . . . . . . Processor 7 | . . . . 1 . 1 1 4 Hackware 1 | . . . . . . . . 1 Protection 1 | . . 1 . . . . . . Artifact . | . . . . . . . . . Weapon 4 | . . . . . . 1 . 3 Energy Gun . | . . . . . . . . . Energy Cannon . | . . . . . . . . . Ballistic Gun . | . . . . . . . . . Ballistic Cannon . | . . . . . . . . . Launcher . | . . . . . . . . . Special Weapon . | . . . . . . . . . Impact Weapon . | . . . . . . . . . Slashing Weapon . | . . . . . . . . . Piercing Weapon 4 | . . . . . . 1 . 3 Special Melee Weapon . | . . . . . . . . . Unidentified Prototypes 1 | . . . 1 . . . . . Parts Lost 4 | . . . . . . . . 4 Power . | . . . . . . . . . Propulsion 2 | . . . . . . . . 2 Utility 2 | . . . . . . . . 2 Weapon . | . . . . . . . . . Highest Loss Streak 2 | . . . . . . . . 2 To Critical Strikes . | . . . . . . . . . Average Slot Usage (%) 49 | . 9 24 31 41 45 54 53 54 Flight 4 | . . . 4 9 9 9 6 1 Device 11 | . 9 13 18 18 18 18 13 8 Processor 21 | . . . . 5 9 14 20 30 Hackware 2 | . . . . . . . . 4 Protection 6 | . . 11 9 9 9 9 6 5 Piercing Weapon 2 | . . . . . . 3 6 1 Peak Build Rating 44 | . 1 5 9 12 12 25 31 44 Average Rating 26 | . . 2 6 10 12 19 27 36 On Entrance 10 | . . 1 5 9 12 12 25 28 Naked Turns 16 | . 16 . . . . . . . Heaviest Build 5 | . 1 3 3 3 3 5 5 5 Greatest Support 12 | 3 3 3 5 5 5 5 5 12 Greatest Overweight (x) 1 | . . . . . . . . 1 Average Overweight (x) . | . . . . . . . . . Largest Inventory Capacity 5 | 5 5 5 5 5 5 5 5 5 Average Capacity 5 | 5 5 5 5 5 5 5 5 5 Most Carried 5 | . 4 5 5 5 5 5 5 5 Average Carried 4 | . 1 4 5 4 5 4 4 4 Final Capacity 5 | 5 5 5 5 5 5 5 5 5 Final Carried 5 | . 4 5 5 5 5 5 5 4 Class Distribution -------------------- 58% | Mutant 41% | Scout Dominant Class ---------------- Mutant | -10/Materials Mutant | -9/Materials Mutant | -8/Materials Mutant | -8/Storage Mutant | -8/Recycling Mutant | -8/Scraptown Scout | -6/Factory Scout | -5/Factory Resources | -11 -10 -9 -8 -8 -8 -8 -6 -5 ----------- Run | Yrd Mat Mat Mat Sto Rec Scr Fac Fac Matter Collected 347 | 52 . . . . . 223 . 72 Remotely . | . . . . . . . . . Salvage Created 71 | . . . . . . . 34 37 Parts 4 | . . . . . . . 2 2 Haulers Intercepted . | . . . . . . . . . Recyclers Shooed . | . . . . . . . . . Parts Field Recycled . | . . . . . . . . . Retrieved Matter . | . . . . . . . . . Parts Self-Destructed . | . . . . . . . . . Prevented . | . . . . . . . . . Kills | -11 -10 -9 -8 -8 -8 -8 -6 -5 ------- Run | Yrd Mat Mat Mat Sto Rec Scr Fac Fac Combat Hostiles Destroyed . | . . . . . . . . . Classes Destroyed 1 | . . . . . . . 1 . Watcher 2 | . . . . . . . 1 1 Best Kill Streak 1 | . . . . . . . 1 1 Combat Bots Only . | . . . . . . . . . Max Kills in Single Turn 1 | . . . . . . . 1 1 Gunslinging . | . . . . . . . . . Exploded . | . . . . . . . . . Melee . | . . . . . . . . . Uniques/NPCs Destroyed . | . . . . . . . . . Combat | -11 -10 -9 -8 -8 -8 -8 -6 -5 -------- Run | Yrd Mat Mat Mat Sto Rec Scr Fac Fac Hostile Shots Fired 175 | . 20 11 4 6 . . 17 117 Missed 79 | . 8 5 1 3 . . 9 53 Damage Taken 1641 | . 155 79 49 43 . . 108 1207 Core 1408 | . 155 67 35 29 . . 108 1014 Absorbed by Shields 10 | . . . . . . . . 10 Redirected to Shielding 42 | . . 3 4 . . . . 35 Core Remaining (%) 79 | 100 38 83 . . . 88 87 . Volleys Fired . | . . . . . . . . . Largest . | . . . . . . . . . Hottest . | . . . . . . . . . Shots Fired . | . . . . . . . . . Gun . | . . . . . . . . . Cannon . | . . . . . . . . . Launcher . | . . . . . . . . . Special . | . . . . . . . . . Kinetic . | . . . . . . . . . Thermal . | . . . . . . . . . Explosive . | . . . . . . . . . Electromagnetic . | . . . . . . . . . Robot Hit Streak . | . . . . . . . . . Robot Miss Streak . | . . . . . . . . . Penetration Max . | . . . . . . . . . Secondary Targets . | . . . . . . . . . Shots Hit Robots 3 | . . . . . . . 2 1 Core Hits 5 | . . . . . . . 1 4 Critical Kills . | . . . . . . . . . Critical Parts Destroyed . | . . . . . . . . . Critical Strikes . | . . . . . . . . . Melee Attacks 13 | . . . . . . . 7 6 Impact . | . . . . . . . . . Slashing . | . . . . . . . . . Piercing 13 | . . . . . . . 7 6 Sneak Attacks . | . . . . . . . . . Combat Hostiles . | . . . . . . . . . Follow-up Attacks . | . . . . . . . . . Damage Inflicted 143 | . . . 1 . . . 82 60 Guns . | . . . . . . . . . Cannons . | . . . . . . . . . Explosions . | . . . . . . . . . Melee 118 | . . . . . . . 82 36 Ramming 25 | . . . 1 . . . . 24 Kinetic . | . . . . . . . . . Thermal . | . . . . . . . . . Explosive . | . . . . . . . . . Electromagnetic . | . . . . . . . . . Impact . | . . . . . . . . . Slashing . | . . . . . . . . . Piercing 118 | . . . . . . . 82 36 Highest Corruption . | . . . . . . . . . Average Corruption . | . . . . . . . . . Corruption Purged . | . . . . . . . . . Corruption Blocked . | . . . . . . . . . Overload Shots . | . . . . . . . . . Overflow Damage 12 | . . . . . . . 12 . Projectiles . | . . . . . . . . . Explosions . | . . . . . . . . . Melee 12 | . . . . . . . 12 . Knockbacks . | . . . . . . . . . Impact . | . . . . . . . . . Kinetic . | . . . . . . . . . Secondary . | . . . . . . . . . Self-Inflicted Damage 10 | . . . . . . . . 10 Shots . | . . . . . . . . . Rammed 7 | . . . 1 . . . . 6 Targets Rammed 7 | . . . 1 . . . . 6 Kicked . | . . . . . . . . . Crushed . | . . . . . . . . . Highest Temperature . | . . . . . . . . . Average Temperature . | . . . . . . . . . Received Heat Transfer 384 | . 87 27 27 9 . . 39 195 Siege Activations . | . . . . . . . . . Robots Corrupted . | . . . . . . . . . Combat Hostiles . | . . . . . . . . . Parts Fried . | . . . . . . . . . Impact Corruptions . | . . . . . . . . . Robots Melted . | . . . . . . . . . Combat Hostiles . | . . . . . . . . . Parts Melted . | . . . . . . . . . Heat Transferred . | . . . . . . . . . Parts Sabotaged . | . . . . . . . . . Parts Stolen . | . . . . . . . . . Parts Stripped . | . . . . . . . . . Power Chain Reactions . | . . . . . . . . . Alert | -11 -10 -9 -8 -8 -8 -8 -6 -5 ------- Run | Yrd Mat Mat Mat Sto Rec Scr Fac Fac Peak Influence 495 | . . 15 18 52 19 . 52 495 Initial 25 | . . . 5 7 19 . . 25 Average 156 | . . 8 7 30 19 . 10 259 Maximum Alert Level 2 | . . . . . . . . 2 Low Security (%) 62 | 100 100 100 100 100 100 . 100 35 Level 1 31 | . . . . . . . . 54 Level 2 6 | . . . . . . . . 10 Level 3 . | . . . . . . . . . Level 4 . | . . . . . . . . . Level 5 . | . . . . . . . . . High Security . | . . . . . . . . . Max Security . | . . . . . . . . . Squads Dispatched 5 | . . . 2 1 . . . 2 Investigation 2 | . . . 2 . . . . . Extermination . | . . . . . . . . . Reinforcement 3 | . . . . 1 . . . 2 Assault . | . . . . . . . . . Garrison . | . . . . . . . . . Intercept . | . . . . . . . . . Searches Triggered . | . . . . . . . . . Construction Impeded . | . . . . . . . . . Haulers Reinforced 1 | . . . . . . . . 1 Active Scanning Responses . | . . . . . . . . . Cargo Convoy Interrupts . | . . . . . . . . . Stealth | -11 -10 -9 -8 -8 -8 -8 -6 -5 --------- Run | Yrd Mat Mat Mat Sto Rec Scr Fac Fac Distress Signals 1 | . . . . . . . . 1 Communications Jammed . | . . . . . . . . . Distress Signals . | . . . . . . . . . Times Spotted 68 | . 2 5 5 3 . . 9 44 Peak Tracking Total 11 | . 2 5 5 3 . . 8 11 Tactical Retreats 14 | . . . . . . . . 14 Traps | -11 -10 -9 -8 -8 -8 -8 -6 -5 ------- Run | Yrd Mat Mat Mat Sto Rec Scr Fac Fac Traps Triggered 2 | . . . . . . . 1 1 Indirectly . | . . . . . . . . . Trap Hack Attempts . | . . . . . . . . . Triggered . | . . . . . . . . . Disarmed . | . . . . . . . . . Reprogrammed . | . . . . . . . . . Reused . | . . . . . . . . . Traps Extracted . | . . . . . . . . . Installed . | . . . . . . . . . Triggered . | . . . . . . . . . Machines | -11 -10 -9 -8 -8 -8 -8 -6 -5 ---------- Run | Yrd Mat Mat Mat Sto Rec Scr Fac Fac Machines Disabled . | . . . . . . . . . Max in Single Turn . | . . . . . . . . . Machines Repaired . | . . . . . . . . . Machines Dismantled . | . . . . . . . . . Machines Sabotaged . | . . . . . . . . . Overloaded Fab Kills . | . . . . . . . . . Hacking | -11 -10 -9 -8 -8 -8 -8 -6 -5 --------- Run | Yrd Mat Mat Mat Sto Rec Scr Fac Fac Machines Accessed 7 | . . . 2 1 . . . 4 Terminals 7 | . . . 2 1 . . . 4 Fabricators . | . . . . . . . . . Repair Stations . | . . . . . . . . . Recycling Units . | . . . . . . . . . Scanalyzers . | . . . . . . . . . Garrison Access . | . . . . . . . . . Total Hacks 18 | . . . 7 1 . . . 10 Successful 9 | . . . 5 1 . . . 3 Failed 9 | . . . 2 . . . . 7 Catastrophic 3 | . . . . . . . . 3 Database Lockouts . | . . . . . . . . . Manual 14 | . . . 3 1 . . . 10 Terminals 18 | . . . 7 1 . . . 10 Fabricators . | . . . . . . . . . Repair Stations . | . . . . . . . . . Recycling Units . | . . . . . . . . . Scanalyzers . | . . . . . . . . . Garrison Access . | . . . . . . . . . Terminal Hacks 4 | . . . 3 1 . . . . Prototype ID Bank 1 | . . . 1 . . . . . Open Door 1 | . . . . 1 . . . . Transport Status 1 | . . . 1 . . . . . Zone Layout 1 | . . . 1 . . . . . Fabricator Hacks . | . . . . . . . . . Repair Station Hacks . | . . . . . . . . . Recycling Unit Hacks . | . . . . . . . . . Scanalyzer . | . . . . . . . . . Garrison Access Hacks . | . . . . . . . . . Unauthorized Hacks 5 | . . . 2 . . . . 3 Terminals 5 | . . . 2 . . . . 3 Botnet 5 | . . . 2 . . . . 3 Fabricators . | . . . . . . . . . Repair Stations . | . . . . . . . . . Recycling Units . | . . . . . . . . . Scanalyzers . | . . . . . . . . . Garrison Access . | . . . . . . . . . Data Cores Recovered . | . . . . . . . . . Used . | . . . . . . . . . Hacking Detections 6 | . . . 2 . . . . 4 Full Trace Events 2 | . . . 2 . . . . . Feedback Events . | . . . . . . . . . Feedback Blocked . | . . . . . . . . . Robot Schematics Acquired . | . . . . . . . . . Robots Built . | . . . . . . . . . Authchips . | . . . . . . . . . Time . | . . . . . . . . . Total Robot Build Rating . | . . . . . . . . . Part Schematics Acquired . | . . . . . . . . . Parts Built . | . . . . . . . . . Authchips . | . . . . . . . . . Time . | . . . . . . . . . Total Part Build Rating . | . . . . . . . . . Parts Repaired . | . . . . . . . . . Time . | . . . . . . . . . Parts Recycled . | . . . . . . . . . Recycled Matter . | . . . . . . . . . Retrieved Matter . | . . . . . . . . . Retrieved Components . | . . . . . . . . . Parts Scanalyzed . | . . . . . . . . . Part Schematics Acquired . | . . . . . . . . . Parts Damaged . | . . . . . . . . . Bothacking | -11 -10 -9 -8 -8 -8 -8 -6 -5 ------------ Run | Yrd Mat Mat Mat Sto Rec Scr Fac Fac Used RIF Installer . | . . . . . . . . . Robots Hacked . | . . . . . . . . . Non-combat . | . . . . . . . . . Combat . | . . . . . . . . . Robot Hacks Applied . | . . . . . . . . . Relay Couplers Released . | . . . . . . . . . Fabnet Peak Effective % . | . . . . . . . . . Robots Rewired . | . . . . . . . . . Allies Hacked . | . . . . . . . . . Hacks Repelled . | . . . . . . . . . Allies | -11 -10 -9 -8 -8 -8 -8 -6 -5 -------- Run | Yrd Mat Mat Mat Sto Rec Scr Fac Fac Total Allies . | . . . . . . . . . Largest Group . | . . . . . . . . . Highest-Rated Group . | . . . . . . . . . Highest-Rated Ally . | . . . . . . . . . Total Orders . | . . . . . . . . . Ally Attacks . | . . . . . . . . . Total Damage . | . . . . . . . . . Kills . | . . . . . . . . . Allies Corrupted . | . . . . . . . . . Allies Melted . | . . . . . . . . . Intel | -11 -10 -9 -8 -8 -8 -8 -6 -5 ------- Run | Yrd Mat Mat Mat Sto Rec Scr Fac Fac Robot Analysis Total . | . . . . . . . . . Derelict Logs Recovered . | . . . . . . . . . Drone Launches . | . . . . . . . . . Drone Recoveries . | . . . . . . . . . Exploration | -11 -10 -9 -8 -8 -8 -8 -6 -5 ------------- Run | Yrd Mat Mat Mat Sto Rec Scr Fac Fac Turns Passed 990 | 9 34 51 18 49 45 138 148 498 Spaces Moved 2158 | 18 57 93 37 132 128 367 317 1009 Core 760 | 18 57 93 22 . . . . 570 Treads . | . . . . . . . . . Legs . | . . . . . . . . . Wheels . | . . . . . . . . . Hover . | . . . . . . . . . Flight 1398 | . . . 15 132 128 367 317 439 Fastest Speed 35 | 50 50 50 35 35 35 35 35 35 Average Speed 40 | 50 50 50 43 35 35 35 35 43 Slowest Speed 100 | 50 50 50 50 35 35 35 35 100 Overloaded Moves . | . . . . . . . . . Propulsion Burnouts . | . . . . . . . . . Robots Hopped 6 | . . . 2 . . . 2 2 Cave-ins Triggered . | . . . . . . . . . Exploration Rate (%) 25 | 3 23 15 5 44 37 42 16 46 Regions Visited 8 Branch Regions 3 Pre-discovered Areas . | . . . . . . . . . Known Exits Taken 2 | . . . . . . 1 1 . Unknown Exits Taken 6 | 1 1 1 1 1 1 . . . Scrap Searched 3 | . . . . . . 3 . . Spaces Dug 4 | . . . . . . . . 4 Terrain Destroyed 4 | . . . . . . . . 4 Melee 4 | . . . . . . . . 4 Projectile . | . . . . . . . . . AOE . | . . . . . . . . . Terrain Rammed . | . . . . . . . . . Walls Destroyed . | . . . . . . . . . Machines Disabled . | . . . . . . . . . Actions | -11 -10 -9 -8 -8 -8 -8 -6 -5 --------- Run | Yrd Mat Mat Mat Sto Rec Scr Fac Fac Total 2245 | 17 61 95 36 134 127 375 344 1056 Wait . | . . . . . . . . . Move 2141 | 17 56 92 34 131 127 366 312 1006 Hop 4 | . . . 1 . . . 2 1 Pick Up 10 | . 4 1 . 1 . 3 . 1 Fast Attach 16 | . 1 2 1 1 . 2 1 8 Attach 5 | . . . . . . . 2 3 Detach 7 | . . . . . . . 2 5 Swap 1 | . . . . . . 1 . . Drop 7 | . . . . 1 . 3 . 3 Fire . | . . . . . . . . . Melee 13 | . . . . . . . 7 6 Ram 6 | . . . . . . . . 6 Kick . | . . . . . . . . . Crush . | . . . . . . . . . Escape Stasis 35 | . . . . . . . 18 17 Rewire . | . . . . . . . . . Trap . | . . . . . . . . . Miscellaneous . | . . . . . . . . . Route ------- -11/Scrapyard -10/Materials -9/Materials -8/Materials -8/Storage -8/Recycling -8/Scraptown -6/Factory -5/Factory History --------- Turn | Location | Event 3 | -11/Scrapyard | Discovered new exit (range 15) 10 | -11/Scrapyard | Entered Materials 36 | -10/Materials | Core integrity fell below 50% 42 | -10/Materials | Discovered new exit (range 4) 44 | -10/Materials | Entered another Materials area 44 | -9/Materials | Evolved 2 slots: Utility x2 86 | -9/Materials | Discovered new exit (range 10) 95 | -9/Materials | Entered another Materials area 95 | -8/Materials | Evolved 2 slots: Propulsion x1, Utility x1 110 | -8/Materials | Discovered new exit (range 8) 113 | -8/Materials | Entered Storage 161 | -8/Storage | Used back door to open Recycling access 161 | -8/Storage | Discovered new exit (range 5) 162 | -8/Storage | Entered Recycling 199 | -8/Recycling | Scanned before Scraplab entrance 203 | -8/Recycling | Discovered new exit (range 11) 204 | -8/Recycling | Entered Scraplab 207 | -8/Recycling | Entered Scraptown 246 | -8/Scraptown | Visited UFD Registry 246 | -8/Scraptown | Registered with UFD as "Thermoeater" 253 | -8/Scraptown | Visited Infowarlord's Domain 255 | -8/Scraptown | Found Exp. Signal Interpreter 267 | -8/Scraptown | Visited Junk Repository 271 | -8/Scraptown | Visited Analyses Database 280 | -8/Scraptown | Visited Supply Room 300 | -8/Scraptown | Visited DA-N13 Charitable Foundation 305 | -8/Scraptown | Found DCF Scrap (28 items) 326 | -8/Scraptown | Build established: Mutant 333 | -8/Scraptown | Visited LU-1G1's Boring Crew 343 | -8/Scraptown | Discovered new exit (range 5) 344 | -8/Scraptown | Identified exit to Factory 345 | -8/Scraptown | Entered Factory 345 | -6/Factory | Evolved 4 slots: Propulsion x1, Utility x3 481 | -6/Factory | Discovered new exit (range 15) 492 | -6/Factory | Identified exit to Factory 493 | -6/Factory | Entered another Factory area 493 | -5/Factory | Evolved 2 slots: Utility x2 676 | -5/Factory | Build established: Scout 913 | -5/Factory | Core integrity fell below 50% 958 | -5/Factory | Core integrity fell below 20% 991 | -5/Factory | Destroyed by S-27 Virus with Autogun Last Messages --------------- H-66 Slayer retrieves Drone. Imp. Sensor Array destroyed. Slug penetrates Wall. Penetrated by Slug. Slug penetrates Wall. K-01 Serf cleans the Fusion Modulator. Slammed into A-15 Conveyor. A-15 Conveyor calls for reinforcements. ALERT: Hostile activity reported, dispatching reinforcements to area. Slammed into A-15 Conveyor. Slug penetrates Wall. Slammed into A-15 Conveyor. Penetrated by Slug. Slammed into A-15 Conveyor. Penetrated by Slug. Acquired Adv. Weight Redist. System. Acquired Nuclear Pulse Thruster. Structural Scanner destroyed. Nuclear Pulse Thruster destroyed. Knocked back. Map ----- +----------------------------------------------------+ | #?????????????# #??? | | " #????########## #??? | | " #????# #??? | | " #????# #??? | | #????# #??? | | " #????+ ^ #??? | | " #????# H ##############+####??? | | " #????# """" #??????# #?????? | | #????# ^"""" ######## " " " #?????? | | #????#### """" # " " " #?????? | | #+##???????# """" # " " " #?????? | | # ###??????# """" / " " " #?????? | | ######## """" # " " " #?????? | | ! # " " " #?????? | | % # " " " #?????? | | ########## # " " " #?????? | | """ """ """%""" # # # " " " #?????? | | """ """ """ """ # """ s# # #?????? | | """ """ """ """ # """ s/ #########?????? | | # """ s# #?????????????? | | [ """ """ # # #?????????????? | | """ """ # """ #######?????????????? | | " " """ """ # """ #???????????????????? | | ""G"" # """ #???????????????????? | | # #???????????????????? | | #####@####???????????????????? | | ?############ ? ###??#;##??????????????????????? | | ????????????? ? #??? ????????????????????????? | | ????????????? ?? #?? ?????????????????????????? | | ????????????? ?? ?? ?????????????????????????? | | ????????????? ??? # ""Y??????????????????????????? | | ????????????? ????# """??????????????????????????? | | ????????????? ????# ???????????????????????????? | | ?????????????#????####???????????????????????????? | | ?????????????????????????????????????????????????? | | ?????????????????????????????????????????????????? | | ?????????????????????????????????????????????????? | | ?????????????????????????????????????????????????? | | ?????????????????????????????????????????????????? | | ?????????????????????????????????????????????????? | | ?????????????????????????????????????????????????? | | ?????????????????????????????????????????????????? | | ?????????????????????????????????????????????????? | | ?????????????????????????????????????????????????? | | ?????????????????????????????????????????????????? | | ?????????????????????????????????????????????????? | | ????????????????????????#############????????????? | | ????????????????????????#############????????????? | | ############????????????## ]] ##????????????? | | ############??????????#### ] ##????????????? | +----------------------------------------------------+ Best States ------------- Heat Dissipation 40 Energy Generation 5 Energy Capacity 100 Matter Stores 300 Matter Capacity 300 Sight Range 20 Robot Scan Range 15 Terrain Scan Range 16 Terrain Scan Density 310 Additional Mass Support 9 Corruption Block 30 Utility Shielding 33 Evasion (%) 63 Offensive Hacking 10 Item Schematics ----------------- None Robot Schematics ------------------ None Fabricated ------------ Nothing Alien Tech Used ----------------- None Achievements -------------- None Challenges ------------ None Game ------ Seed ProtonDefenseModule Manual? 0 Play Time 00:25:54 Cumulative 183.6 hours Start 2024.08.09 @ 11:08:15 End 2024.08.09 @ 11:44:16 Sessions 1 Manual Loads 0 Difficulty Rogue Special Mode None Game No. 307 Rogue 305 Adventurer 2 Explorer 0 Win Type - Total 6 Types 5/0/0/1/0/0/0/0/0 Lore% 69 Gallery% 62 Achievement% 53 Wizard Run 0 Options --------- Layout 0 ASCII 0 Keyboard 1 Movement Numpad Keybinds 1 Fullscreen 2 Font 18/SmallcapsGlow Map View 76x50 Zoom Use 0% Tactical HUD 1 Map Filters NONE Filters NONE Steam 1 RUN: e3d135d8-0506-4b0f-a886-9b568c31fa97